bitfinex/quotes_BTCUSD_20251113
["timestamp","ask_amount","ask_price","bid_price","bid_amount"]
[1763015286281,0.24067475,103560.0,103550.0,0.00961]
[1763015286487,0.28371475,103560.0,103550.0,0.00961]
[1763015287320,0.19312475,103560.0,103550.0,0.2549334]
[1763015287538,0.23616475,103560.0,103550.0,0.2749334]
[1763015287742,0.36107475,103560.0,103540.0,0.24427658]
[1763015287948,0.36107475,103560.0,103550.0,0.02]
[1763015288294,0.23612475,103560.0,103550.0,0.07218]
[1763015288497,0.23612475,103560.0,103550.0,0.2653234]
[1763015288697,0.23612475,103560.0,103550.0,0.07218]
[1763015289195,0.19312219,103580.0,103560.0,0.19312475]
[1763015289365,0.27387611,103570.0,103560.0,0.07948]
[1763015289520,0.65090213,103570.0,103550.0,0.59455908]
[1763015289889,0.39878611,103570.0,103550.0,0.60455908]
[1763015290068,0.32142611,103570.0,103560.0,0.19312475]
[1763015290218,0.043,103570.0,103560.0,0.24530475]
[1763015291018,0.043,103570.0,103560.0,0.26530475]
[1763015291230,0.23610611,103570.0,103560.0,0.32087475]
[1763015291548,0.19306882,103590.0,103580.0,0.19308746]
[1763015291749,0.23606882,103590.0,103580.0,0.24526746]
[1763015291951,0.31316744,103600.0,103580.0,0.24526746]
[1763015292179,0.23580744,103600.0,103590.0,0.01867]
[1763015292400,0.00186003,103600.0,103590.0,0.26391882]
[1763015292700,0.04486003,103600.0,103590.0,0.59165162]
[1763015293151,0.04586003,103600.0,103590.0,0.3395356]
[1763015293922,0.04486003,103600.0,103590.0,0.59165162]
[1763015294300,0.04486003,103600.0,103590.0,0.91465162]
[1763015295384,0.00186003,103600.0,103590.0,0.91465162]
[1763015295585,0.00186003,103600.0,103590.0,1.27689926]
[1763015295786,0.19297714,103640.0,103620.0,0.19300598]
[1763015295988,0.19297714,103640.0,103630.0,0.01845]
[1763015296202,0.19297714,103640.0,103620.0,0.02]
[1763015296203,0.1929943,103630.0,103620.0,0.02]
[1763015296631,0.1929943,103630.0,103620.0,0.26519293]
[1763015296831,0.043,103630.0,103620.0,0.26519293]
[1763015296979,0.043,103630.0,103620.0,0.57287895]
[1763015297183,0.57009995,103650.0,103630.0,0.1929943]
[1763015297184,0.24062393,103650.0,103630.0,0.1929943]
[1763015297387,0.19316132,103650.0,103640.0,0.07063]
[1763015297620,0.23616132,103650.0,103640.0,0.07063]
[1763015297787,0.19315706,103650.0,103640.0,0.07063]
[1763015297994,0.23615706,103650.0,103640.0,0.07063]
[1763015298409,0.27392706,103650.0,103640.0,0.07063]
[1763015298812,0.23615706,103650.0,103640.0,0.07063]
[1763015299046,0.27392706,103650.0,103640.0,0.07063]
[1763015299741,0.23092706,103650.0,103640.0,0.07063]
[1763015300048,0.19315706,103650.0,103640.0,0.26360568]
[1763015300206,0.23615706,103650.0,103640.0,0.09063]
[1763015301699,0.77763942,103650.0,103630.0,0.01845]
[1763015301899,0.23092706,103650.0,103640.0,0.05218]
[1763015302099,0.19297568,103640.0,103630.0,0.09402]
[1763015302303,0.23593568,103640.0,103630.0,0.09402]
[1763015302512,0.04296,103640.0,103630.0,0.76099666]
[1763015302932,0.23593568,103640.0,103630.0,0.2836243]
[1763015303230,0.04296,103640.0,103630.0,0.3391943]
[1763015303434,0.23593568,103640.0,103630.0,0.09063]
[1763015303853,0.04292,103640.0,103630.0,0.76099666]
[1763015304063,0.19315913,103650.0,103640.0,0.19297568]
[1763015304223,0.04312,103650.0,103640.0,0.32072568]
[1763015304445,0.04312,103650.0,103640.0,0.74252804]
[1763015304446,0.0002,103650.0,103640.0,0.74252804]
[1763015304612,0.04312,103650.0,103640.0,0.32072568]
[1763015304808,0.0002,103650.0,103640.0,0.32072568]
[1763015305060,0.04312,103650.0,103640.0,0.74252804]
[1763015305633,0.0002,103650.0,103640.0,1.06552804]
[1763015305846,0.04312,103650.0,103640.0,1.06552804]
[1763015306275,0.04312,103650.0,103640.0,1.06652804]
[1763015306509,0.04312,103650.0,103640.0,0.87355236]
[1763015306710,0.2372879,103650.0,103640.0,0.39618]
[1763015306957,0.2372879,103650.0,103640.0,0.58915568]
[1763015307396,0.2372879,103650.0,103640.0,0.39618]
[1763015307520,0.2372879,103650.0,103640.0,0.63869568]
[1763015307774,0.2750579,103650.0,103640.0,0.39618]
[1763015308016,0.34054599,103650.0,103640.0,0.021]
[1763015308328,0.41790599,103650.0,103640.0,0.021]
[1763015308669,0.41790599,103650.0,103640.0,0.02]
[1763015309521,0.34054599,103650.0,103640.0,0.02]
[1763015309923,0.1929943,103630.0,103620.0,4.678e-05]
[1763015310123,0.82902475,103630.0,103620.0,4.678e-05]
[1763015310757,0.40722239,103630.0,103620.0,4.678e-05]
[1763015310929,0.29015239,103630.0,103620.0,4.678e-05]
[1763015311132,0.33311239,103630.0,103620.0,4.678e-05]
[1763015311407,0.29015239,103630.0,103620.0,4.678e-05]
[1763015311618,0.40722239,103630.0,103620.0,4.678e-05]
[1763015312015,0.36426239,103630.0,103620.0,4.678e-05]
[1763015312273,0.25385239,103630.0,103620.0,0.04958678]
[1763015313234,0.25385239,103630.0,103620.0,0.26259971]
[1763015313646,0.19299178,103640.0,103620.0,0.31213971]
[1763015313783,0.04292,103630.0,103620.0,0.31213971]
[1763015313979,0.04292,103630.0,103620.0,0.26259971]
[1763015314206,0.04292,103630.0,103620.0,0.32455971]
[1763015314434,0.25390305,103630.0,103620.0,0.32455971]
[1763015314673,0.00984785,103650.0,103620.0,1.07901271]
[1763015314897,0.01818705,103650.0,103640.0,0.26251568]
[1763015315086,0.28882411,103650.0,103640.0,0.02]
[1763015315259,0.81378942,103650.0,103630.0,0.323]
[1763015315440,0.81378942,103650.0,103630.0,0.5159943]
[1763015315636,0.19297568,103640.0,103630.0,0.5359943]
[1763015315898,0.81378942,103650.0,103630.0,0.5359943]
[1763015315899,0.27083706,103650.0,103640.0,0.19297568]
[1763015316057,0.22791706,103650.0,103640.0,0.21297568]
[1763015316259,0.0002,103650.0,103640.0,0.26251568]
[1763015316475,0.23607706,103650.0,103640.0,0.26251568]
[1763015317628,0.28311706,103650.0,103630.0,0.5359943]
[1763015318360,0.19297568,103640.0,103630.0,0.5359943]
[1763015318756,0.19297568,103640.0,103630.0,0.6350743]
[1763015319038,0.23607706,103650.0,103640.0,0.19297568]
[1763015319260,0.0002,103650.0,103640.0,0.73385804]
[1763015319400,0.0002,103650.0,103640.0,0.75113428]
[1763015320051,0.0002,103650.0,103640.0,1.21585664]
[1763015320317,0.0002,103650.0,103640.0,1.27927538]
[1763015320522,0.0002,103650.0,103640.0,1.61227537]
[1763015320923,0.00141084,103650.0,103640.0,1.18047302]
[1763015322175,0.00141084,103650.0,103640.0,1.60227538]
[1763015322524,0.00141084,103650.0,103640.0,1.18047302]
[1763015323169,0.00141084,103650.0,103640.0,0.34933192]
[1763015323368,0.2372479,103650.0,103640.0,0.08681624]
[1763015323573,0.2842879,103650.0,103640.0,0.01727624]
[1763015323749,0.2842879,103650.0,103640.0,0.02]
[1763015324097,0.19298457,103640.0,103630.0,0.02]
[1763015324299,0.24019706,103650.0,103630.0,0.5359943]
[1763015324444,0.23585568,103640.0,103630.0,0.39254]
[1763015324642,0.23585568,103640.0,103620.0,0.2798729]
[1763015324839,0.35700568,103640.0,103620.0,0.2503329]
[1763015325043,0.77070666,103630.0,103620.0,4.678e-05]
[1763015326599,0.3489043,103630.0,103620.0,4.678e-05]
[1763015326831,0.2359143,103630.0,103620.0,0.44184914]
[1763015326994,0.22873568,103640.0,103620.0,0.49138914]
[1763015327159,0.03476,103640.0,103630.0,0.2129943]
[1763015327525,0.27069568,103640.0,103630.0,0.02]
[1763015328129,0.22773568,103640.0,103630.0,0.02]
[1763015328338,0.27069568,103640.0,103630.0,0.02]
[1763015329134,0.27065568,103640.0,103630.0,0.02]
[1763015329372,0.23589568,103640.0,103630.0,0.02]
[1763015329567,0.23686445,103640.0,103630.0,0.02]
[1763015330761,0.23686445,103640.0,103630.0,0.2625343]
[1763015331892,0.23686445,103640.0,103630.0,0.021]
[1763015332100,0.19394445,103640.0,103630.0,0.021]
[1763015332257,0.23686445,103640.0,103630.0,0.001]
[1763015332821,0.28390445,103640.0,103630.0,0.001]
[1763015333021,0.35801445,103640.0,103630.0,0.001]
[1763015334704,0.77981681,103640.0,103630.0,0.001]
[1763015334905,0.35801445,103640.0,103630.0,0.001]
[1763015335132,0.1929943,103630.0,103620.0,0.02004678]
[1763015335350,0.2277543,103630.0,103620.0,0.02004678]
[1763015335739,0.2277543,103630.0,103620.0,0.21305971]
[1763015336309,0.2277543,103630.0,103620.0,0.02004678]
[1763015337016,0.2277543,103630.0,103620.0,0.21305971]
[1763015337220,0.3489043,103630.0,103620.0,0.00104678]
[1763015337584,0.3917843,103630.0,103620.0,0.00104678]
[1763015338121,0.3917843,103630.0,103620.0,4.678e-05]
[1763015338352,0.2747943,103630.0,103620.0,4.678e-05]
[1763015338569,0.2706343,103630.0,103620.0,4.678e-05]
[1763015338973,0.2747943,103630.0,103620.0,4.678e-05]
[1763015339150,0.3917843,103630.0,103620.0,4.678e-05]
[1763015339565,0.2747943,103630.0,103620.0,0.19305971]
[1763015339770,0.2706343,103630.0,103620.0,0.19305971]
[1763015339951,0.2706343,103630.0,103620.0,4.678e-05]
[1763015340155,0.2706343,103630.0,103620.0,0.19305971]
[1763015340567,0.27136094,103630.0,103620.0,4.678e-05]
[1763015340781,0.27136094,103630.0,103620.0,0.19305971]
[1763015340981,0.00072664,103630.0,103620.0,0.71914207]
[1763015341184,0.04360664,103630.0,103620.0,0.71914207]
[1763015341527,0.04360664,103630.0,103620.0,1.09325806]
[1763015343988,0.23660094,103630.0,103620.0,1.09325806]
[1763015344216,0.04360664,103630.0,103620.0,1.09325806]
[1763015344451,0.00072664,103630.0,103620.0,1.09325806]
[1763015344657,0.04360664,103630.0,103620.0,1.09325806]
[1763015344862,0.23660094,103630.0,103620.0,0.39416277]
[1763015345073,0.38100094,103630.0,103620.0,0.05116277]
[1763015345276,0.38100094,103630.0,103620.0,4.678e-05]
[1763015345921,0.04360664,103630.0,103620.0,0.3451757]
[1763015346130,0.22840094,103630.0,103620.0,0.05116277]
[1763015346333,0.00072664,103630.0,103620.0,0.3046757]
[1763015346555,0.31464094,103630.0,103620.0,0.07116277]
[1763015346981,0.31437215,103630.0,103620.0,0.2641757]
[1763015347181,0.12137785,103630.0,103620.0,0.2641757]
[1763015347380,0.07801785,103630.0,103620.0,0.2641757]
[1763015347578,0.27101215,103630.0,103620.0,0.07116277]
[1763015348000,0.38073215,103630.0,103620.0,0.05116277]
[1763015348590,0.04333785,103630.0,103620.0,0.72647806]
[1763015349011,0.23633215,103630.0,103620.0,0.3046757]
[1763015349219,0.23633215,103630.0,103620.0,0.72647806]
[1763015349782,0.00045785,103630.0,103620.0,0.68333462]
[1763015349993,0.00045785,103630.0,103620.0,1.13148829]
[1763015352103,0.00045785,103630.0,103620.0,0.70968593]
[1763015352307,0.00045785,103630.0,103620.0,1.13148829]
[1763015353373,8.543e-05,103630.0,103620.0,1.13148829]
[1763015353985,8.543e-05,103630.0,103620.0,0.70968593]
[1763015354186,8.543e-05,103630.0,103620.0,1.13148829]
[1763015354415,0.03476543,103630.0,103620.0,0.425673]
[1763015354621,0.03476543,103630.0,103620.0,1.12148829]
[1763015354622,8.543e-05,103630.0,103620.0,1.12148829]
[1763015355063,8.543e-05,103630.0,103620.0,0.69968593]
[1763015355245,8.543e-05,103630.0,103620.0,1.12148829]
[1763015356033,0.19307973,103630.0,103620.0,1.08098829]
[1763015356843,0.19307973,103630.0,103620.0,1.12148829]
[1763015357044,8.543e-05,103630.0,103620.0,1.12148829]
[1763015357250,0.04296543,103630.0,103620.0,1.12148829]
[1763015357875,8.543e-05,103630.0,103620.0,1.12148829]
[1763015358152,8.543e-05,103630.0,103620.0,1.14148829]
[1763015358382,8.543e-05,103630.0,103620.0,0.71968593]
[1763015358601,8.543e-05,103630.0,103620.0,1.14148829]
[1763015359238,8.543e-05,103630.0,103620.0,1.15920671]
[1763015359886,8.543e-05,103630.0,103620.0,1.24550545]
[1763015361007,8.543e-05,103630.0,103620.0,1.32682059]
[1763015362059,0.0002,103650.0,103640.0,0.48453443]
[1763015362265,0.0002,103650.0,103640.0,0.88503439]
[1763015362473,0.0002,103650.0,103640.0,0.98972199]
[1763015363757,0.0002,103650.0,103640.0,0.9548645]
[1763015363990,0.0002,103650.0,103640.0,0.88692329]
[1763015364164,0.0002,103650.0,103640.0,0.93786882]
[1763015364421,0.04308,103650.0,103640.0,0.45283439]
[1763015364627,0.04308,103650.0,103640.0,0.89736882]
[1763015364803,0.0012,103650.0,103640.0,0.93786882]
[1763015364999,0.0012,103650.0,103640.0,1.18942757]
[1763015365162,0.0002,103650.0,103640.0,0.93786882]
[1763015365804,0.22783706,103650.0,103640.0,0.41233439]
[1763015366244,0.19315706,103650.0,103640.0,0.89736882]
[1763015366410,0.04308,103650.0,103640.0,0.93786882]
[1763015366806,0.23603706,103650.0,103640.0,0.70439314]
[1763015367006,0.27939706,103650.0,103640.0,0.41233439]
[1763015367222,0.23603706,103650.0,103640.0,0.41233439]
[1763015367405,0.27939706,103650.0,103640.0,0.05094553]
[1763015367607,0.34724133,103650.0,103640.0,0.05194553]
[1763015368296,0.34624133,103650.0,103640.0,0.05094553]
[1763015368446,0.34724133,103650.0,103640.0,0.05094553]
[1763015368643,0.34824133,103650.0,103640.0,0.05194553]
[1763015368882,0.34724133,103650.0,103640.0,0.05194553]
[1763015370077,0.23752133,103650.0,103640.0,0.08723553]
[1763015370287,0.23752133,103650.0,103640.0,0.24492121]
[1763015370505,0.04456427,103650.0,103640.0,0.24492121]
[1763015370761,0.23752133,103650.0,103640.0,0.24492121]
[1763015371188,0.59912008,103650.0,103640.0,0.05194553]
[1763015371370,0.24036133,103650.0,103640.0,0.05194553]
[1763015371600,0.23752133,103650.0,103640.0,0.30350428]
[1763015372188,0.23752133,103650.0,103640.0,0.05194553]
[1763015372416,0.00168427,103650.0,103640.0,0.58705996]
[1763015372562,0.00168427,103650.0,103640.0,0.83861871]
[1763015372765,0.04456427,103650.0,103640.0,0.83861871]
[1763015373189,0.04456427,103650.0,103640.0,0.58705996]
[1763015373432,0.23752133,103650.0,103640.0,0.55176996]
[1763015374553,0.00168427,103650.0,103640.0,1.16161871]
[1763015374760,0.00168427,103650.0,103640.0,1.11067318]
[1763015374957,0.00168427,103650.0,103640.0,0.60755568]
[1763015375157,0.00168427,103650.0,103640.0,1.11067318]
[1763015375603,0.00168427,103650.0,103640.0,0.60755568]
[1763015375845,0.00168427,103650.0,103640.0,1.11067318]
[1763015376219,0.00168427,103650.0,103640.0,1.17861439]
[1763015378211,0.00168427,103650.0,103640.0,0.60405564]
[1763015378436,0.19464133,103650.0,103640.0,0.12423121]
[1763015378640,0.33689133,103650.0,103640.0,0.07204527]
[1763015378862,0.33689133,103650.0,103640.0,0.05204527]
[1763015379444,0.59912008,103650.0,103640.0,0.05204527]
[1763015379645,0.34756133,103650.0,103640.0,0.05204527]
[1763015380260,0.34756133,103650.0,103640.0,0.001]
[1763015380541,0.34756133,103650.0,103640.0,0.05204527]
[1763015383439,0.34756133,103650.0,103640.0,0.001]
[1763015384018,0.28324133,103650.0,103640.0,0.05204527]
[1763015384476,0.23752133,103650.0,103640.0,0.28031095]
[1763015384688,0.23752133,103650.0,103640.0,0.5318697]
[1763015384886,0.00168427,103650.0,103640.0,0.5871597]
[1763015385090,0.23752133,103650.0,103640.0,0.39418402]
[1763015385292,0.23752133,103650.0,103640.0,0.5871597]
[1763015386293,0.23752133,103650.0,103640.0,0.5518697]
[1763015386491,0.00168427,103650.0,103640.0,0.5871597]
[1763015386826,0.04456427,103650.0,103640.0,0.5871597]
[1763015387060,0.23752133,103650.0,103640.0,0.5871597]
[1763015387265,0.04456427,103650.0,103640.0,0.5871597]
[1763015387692,0.23752133,103650.0,103640.0,0.5871597]
[1763015388532,0.23752133,103650.0,103640.0,0.39418402]
[1763015388534,0.23752133,103650.0,103640.0,0.10733527]
[1763015388743,0.23752133,103650.0,103640.0,0.5518697]
[1763015390241,0.04456427,103650.0,103640.0,0.5871597]
[1763015391498,0.23752133,103650.0,103640.0,0.5871597]
[1763015391704,0.23752133,103650.0,103640.0,0.5518697]
[1763015392599,0.04456427,103650.0,103640.0,0.5871597]
[1763015393811,0.04452427,103650.0,103640.0,0.5871597]
[1763015395652,0.00168427,103650.0,103640.0,0.5871597]
[1763015396055,0.00168427,103650.0,103640.0,0.83871845]
[1763015396292,0.04452427,103650.0,103640.0,0.85561439]
[1763015396701,0.28320133,103650.0,103640.0,0.08894121]
[1763015396902,0.59908008,103650.0,103640.0,0.001]
[1763015397134,0.28320133,103650.0,103640.0,0.28147875]
[1763015397336,0.00168427,103650.0,103640.0,0.1009988]
[1763015397539,0.04452427,103650.0,103640.0,0.32289448]
[1763015397879,0.23648133,103650.0,103640.0,0.1289188]
[1763015398305,0.00068427,103650.0,103640.0,0.57345323]
[1763015399007,0.04352427,103650.0,103640.0,0.89645323]
[1763015399649,0.04452427,103650.0,103640.0,0.89745323]
[1763015400116,0.00068427,103650.0,103640.0,0.89645323]
[1763015400312,0.04352427,103650.0,103640.0,0.89645323]
[1763015400912,0.04452427,103650.0,103640.0,0.89745323]
[1763015401130,0.00068427,103650.0,103640.0,1.22886494]
[1763015401371,0.00068427,103650.0,103640.0,1.24572735]
[1763015401588,0.00068427,103650.0,103640.0,0.69919111]
[1763015401812,0.04352427,103650.0,103640.0,0.37035422]
[1763015402036,0.23648133,103650.0,103640.0,0.10842123]
[1763015402473,0.23748133,103650.0,103640.0,0.10842123]
[1763015402700,0.23848133,103650.0,103640.0,0.10842123]
[1763015403558,0.23848133,103650.0,103640.0,0.33031691]
[1763015404039,0.23748133,103650.0,103640.0,0.33031691]
[1763015404263,0.04452427,103650.0,103640.0,0.58287566]
[1763015404483,0.00168427,103650.0,103640.0,0.83443441]
[1763015404703,0.23748133,103650.0,103640.0,0.10942123]
[1763015404923,0.26918133,103650.0,103640.0,0.09198701]
[1763015405171,0.31017133,103650.0,103640.0,0.05306701]
[1763015405845,0.62513008,103650.0,103640.0,0.05306701]
[1763015406056,0.37357133,103650.0,103640.0,0.05306701]
[1763015406269,0.31017133,103650.0,103640.0,0.05306701]
[1763015406906,0.31017133,103650.0,103640.0,0.05206701]
[1763015407125,0.30917133,103650.0,103640.0,0.05106701]
[1763015407342,0.26818133,103650.0,103640.0,0.07856701]
[1763015407588,0.26918133,103650.0,103640.0,0.07956701]
[1763015408006,0.00168427,103650.0,103640.0,0.47303443]
[1763015408230,0.04452427,103650.0,103640.0,0.56160144]
[1763015409389,0.00168427,103650.0,103640.0,0.56160144]
[1763015409605,0.04452427,103650.0,103640.0,0.56160144]
[1763015410033,0.04452427,103650.0,103640.0,0.88460144]
[1763015410415,0.04452427,103650.0,103640.0,1.13616019]
[1763015410416,0.00168427,103650.0,103640.0,1.13616019]
[1763015410640,0.00168427,103650.0,103640.0,1.23231376]
[1763015410813,0.00168427,103650.0,103640.0,0.93733627]
[1763015411015,0.00168427,103650.0,103640.0,0.91733627]
[1763015412039,0.00068427,103650.0,103640.0,0.91633627]
[1763015412243,0.00168427,103650.0,103640.0,0.85339506]
[1763015412899,0.00168427,103650.0,103640.0,1.26813405]
[1763015413106,0.00030757,103650.0,103640.0,1.23631376]
[1763015413506,0.00030757,103650.0,103640.0,1.26813405]
[1763015413723,0.00030757,103650.0,103640.0,1.23631376]
[1763015414154,0.12531447,103650.0,103640.0,1.23631376]
[1763015415806,0.12531447,103650.0,103640.0,0.73319626]
[1763015416010,0.12531447,103650.0,103640.0,1.23631376]
[1763015417199,0.12531447,103650.0,103640.0,1.38281376]
[1763015417806,0.12531447,103650.0,103640.0,1.35638032]
[1763015418367,0.12531447,103650.0,103640.0,1.27145381]
[1763015418888,0.12531447,103650.0,103640.0,1.35638032]
[1763015419522,0.12531447,103650.0,103640.0,0.78182157]
[1763015419708,0.00030757,103650.0,103640.0,1.08789787]
[1763015420076,0.00030757,103650.0,103640.0,1.01645662]
[1763015420372,0.00030757,103650.0,103640.0,1.33945662]
[1763015420666,0.00030757,103650.0,103640.0,1.27145381]
[1763015421221,0.00030757,103650.0,103640.0,1.25145381]
[1763015421508,0.00030757,103650.0,103640.0,1.27145381]
[1763015422109,0.00030757,103650.0,103640.0,1.31487255]
[1763015422312,0.00030757,103650.0,103640.0,1.39979906]
[1763015422683,0.00030757,103650.0,103640.0,1.42876515]
[1763015422907,0.00030757,103650.0,103640.0,1.76857333]
[1763015423152,0.0022,103670.0,103660.0,0.55593845]
[1763015423472,0.0022,103670.0,103660.0,1.17890129]
[1763015423676,0.0022,103670.0,103660.0,1.19649454]
[1763015423879,0.0022,103670.0,103660.0,1.26440274]
[1763015424308,0.00266706,103670.0,103660.0,1.19649454]
[1763015424504,0.00266706,103670.0,103660.0,1.30782148]
[1763015424712,0.00266706,103670.0,103660.0,1.31182148]
[1763015425051,0.00266706,103670.0,103660.0,1.26840274]
[1763015425996,0.00266706,103670.0,103660.0,1.20049454]
[1763015426416,0.00266706,103670.0,103660.0,1.23137875]
[1763015426751,0.00266706,103670.0,103660.0,1.20049454]
[1763015427700,0.00266706,103670.0,103660.0,1.21010954]
[1763015428725,0.00315119,103670.0,103660.0,1.21010954]
[1763015429336,0.00315119,103670.0,103660.0,1.20049454]
[1763015429539,0.01565188,103670.0,103660.0,1.25358888]
[1763015431601,0.01565188,103670.0,103660.0,1.30441836]
[1763015431925,0.01565188,103670.0,103660.0,1.26099962]
[1763015432485,0.01565188,103670.0,103660.0,1.21017014]
[1763015432694,0.01565188,103670.0,103660.0,1.25358888]
[1763015432892,0.01565188,103670.0,103660.0,0.83212604]
[1763015433117,0.01565188,103670.0,103660.0,1.25358888]
[1763015433315,0.01565188,103670.0,103660.0,1.32149708]
[1763015439106,0.01565188,103670.0,103660.0,0.90003424]
[1763015439338,0.01565188,103670.0,103660.0,1.32149708]
[1763015440054,0.01565188,103670.0,103660.0,1.25807834]
[1763015440268,0.01565188,103670.0,103660.0,1.21017014]
[1763015440514,0.01565188,103670.0,103660.0,1.27807834]
[1763015441125,0.00315119,103670.0,103660.0,1.27807834]
[1763015441485,0.00315119,103670.0,103660.0,0.8566155]
[1763015441710,0.00315119,103670.0,103660.0,1.27807834]
[1763015442497,0.00315119,103670.0,103660.0,1.07440274]
[1763015442697,0.26465103,103670.0,103660.0,0.07495918]
[1763015443153,0.00315119,103670.0,103660.0,0.61391763]
[1763015443371,0.04595119,103670.0,103660.0,1.00744129]
[1763015443578,0.23887103,103670.0,103660.0,1.03539587]
[1763015443885,0.04595119,103670.0,103660.0,0.98042129]
[1763015444071,0.04595119,103670.0,103660.0,1.00744129]
[1763015444313,0.04595119,103670.0,103660.0,1.05232949]
[1763015444918,0.00315119,103670.0,103660.0,0.92592961]
[1763015445185,0.00315119,103670.0,103660.0,0.92692961]
[1763015445427,0.00315119,103670.0,103660.0,1.24501257]
[1763015445824,0.00315119,103670.0,103660.0,0.94348694]
[1763015446241,0.00315119,103670.0,103660.0,0.92046694]
[1763015446489,0.03309119,103670.0,103660.0,0.44098773]
[1763015446682,0.07173119,103670.0,103660.0,0.44060773]
[1763015447244,0.00315119,103670.0,103660.0,0.78171069]
[1763015447448,0.00315119,103670.0,103660.0,0.75869069]
[1763015447611,0.00315119,103670.0,103660.0,0.78171069]
[1763015449155,0.00315119,103670.0,103660.0,0.48664773]
[1763015449781,0.00315119,103670.0,103660.0,0.78171069]
[1763015449983,0.04595119,103670.0,103660.0,0.78171069]
[1763015450414,0.00315119,103670.0,103660.0,0.78171069]
[1763015450622,0.00315119,103670.0,103660.0,0.80171069]
[1763015452724,0.00315119,103670.0,103660.0,1.16751069]
[1763015453365,0.00315119,103670.0,103660.0,1.1165028]
[1763015454604,0.00315119,103670.0,103660.0,1.15992154]
[1763015455983,0.00315119,103670.0,103660.0,1.2336421]
[1763015456386,0.00057986,103670.0,103660.0,1.59675279]
[1763015456591,0.00057986,103670.0,103660.0,1.59675212]
[1763015457709,0.00057986,103670.0,103660.0,1.59674925]
[1763015457909,0.00057986,103670.0,103660.0,1.30168629]
[1763015458115,0.00057986,103670.0,103660.0,1.22796573]
[1763015458522,0.01308055,103670.0,103660.0,1.22796573]
[1763015462838,0.01308055,103670.0,103660.0,1.52302869]
[1763015463287,0.01308055,103670.0,103660.0,1.22796573]
[1763015463664,0.01308055,103670.0,103660.0,0.53162107]
[1763015463868,0.01308055,103670.0,103660.0,1.12174699]
[1763015465469,0.20600039,103670.0,103660.0,0.53162107]
[1763015465691,0.20600039,103670.0,103660.0,0.87557874]
[1763015465914,0.23678039,103670.0,103660.0,0.37102]
[1763015466109,0.27954039,103670.0,103660.0,0.53602141]
[1763015466530,0.31786039,103670.0,103660.0,0.025]
[1763015466752,0.7522259,103670.0,103660.0,0.05606217]
[1763015466991,0.67164335,103670.0,103660.0,0.05606217]
[1763015467217,0.67164335,103670.0,103660.0,0.005]
[1763015468109,0.37658039,103670.0,103660.0,0.005]
[1763015468395,0.37658039,103670.0,103660.0,0.30006296]
[1763015468601,0.37658039,103670.0,103660.0,0.07106217]
[1763015469019,0.37658039,103670.0,103660.0,0.05306217]
[1763015469222,0.37658039,103670.0,103660.0,0.05106217]
[1763015469650,0.23778039,103670.0,103660.0,0.37177513]
[1763015469831,0.23778039,103670.0,103660.0,0.58471358]
[1763015469832,0.28054039,103670.0,103660.0,0.58471358]
[1763015471281,0.28054039,103670.0,103660.0,0.36988777]
[1763015471914,0.23778039,103670.0,103660.0,0.36988777]
[1763015472157,0.28054039,103670.0,103660.0,0.36988777]
[1763015472347,0.31886039,103670.0,103660.0,0.03820533]
[1763015472583,0.31886039,103670.0,103650.0,0.50802002]
[1763015472584,0.23125845,103660.0,103650.0,0.50802002]
[1763015472942,0.03832,103660.0,103650.0,0.50802002]
[1763015473136,0.33877626,103670.0,103650.0,0.50802002]
[1763015473339,0.33777626,103670.0,103660.0,0.19293845]
[1763015473690,0.33777626,103670.0,103650.0,0.50802002]
[1763015473891,0.19293845,103660.0,103650.0,0.50802002]
[1763015474236,0.19293845,103660.0,103650.0,0.31506296]
[1763015474446,0.23125845,103660.0,103650.0,0.31506296]
[1763015474677,0.23125845,103660.0,103650.0,0.50802002]
[1763015474881,0.23125845,103660.0,103640.0,0.5168479]
[1763015475057,0.23125845,103660.0,103650.0,0.022]
[1763015475058,0.28997845,103660.0,103650.0,0.022]
[1763015475262,0.27401845,103660.0,103650.0,0.21495706]
[1763015475467,0.04276,103660.0,103650.0,0.51002002]
[1763015475900,0.23569845,103660.0,103650.0,0.21495706]
[1763015476122,0.23569845,103660.0,103650.0,0.022]
[1763015476123,0.33273845,103660.0,103650.0,0.022]
[1763015476345,0.33273845,103660.0,103650.0,0.002]
[1763015476544,0.62780141,103660.0,103650.0,0.002]
[1763015477784,0.92286437,103660.0,103650.0,0.002]
[1763015477992,0.92310646,103660.0,103650.0,0.002]
[1763015478642,0.33298054,103660.0,103650.0,0.002]
[1763015478849,0.6280435,103660.0,103650.0,0.002]
[1763015479259,0.92310646,103660.0,103650.0,0.002]
[1763015480102,0.33298054,103660.0,103650.0,0.002]
[1763015480508,0.6280435,103660.0,103650.0,0.002]
[1763015482271,0.33298054,103660.0,103650.0,0.002]
[1763015482476,0.6280435,103660.0,103650.0,0.002]
[1763015484184,0.33298054,103660.0,103650.0,0.002]
[1763015484722,0.6280435,103660.0,103650.0,0.002]
[1763015484947,0.7758061,103660.0,103650.0,0.002]
[1763015485149,0.55439332,103660.0,103650.0,0.002]
[1763015485358,0.33298054,103660.0,103650.0,0.002]
[1763015485543,0.55439332,103660.0,103650.0,0.002]
[1763015485747,0.23594054,103660.0,103650.0,0.43636984]
[1763015486143,0.00024209,103660.0,103650.0,0.65778262]
[1763015486449,0.23594054,103660.0,103650.0,0.43636984]
[1763015486648,0.23594054,103660.0,103650.0,0.21783706]
[1763015486864,0.23594054,103660.0,103650.0,0.43924984]
[1763015487061,0.27426054,103660.0,103650.0,0.43636984]
[1763015487284,0.55439332,103660.0,103650.0,0.022]
[1763015487888,0.04300209,103660.0,103650.0,0.43924984]
[1763015488092,0.00024209,103660.0,103650.0,0.66066262]
[1763015488263,0.04300209,103660.0,103650.0,0.43212984]
[1763015488864,0.04300209,103660.0,103650.0,0.65354262]
[1763015489331,0.00024209,103660.0,103650.0,0.65354262]
[1763015489462,0.04300209,103660.0,103650.0,0.65354262]
[1763015489931,0.00024209,103660.0,103650.0,0.65354262]
[1763015490286,0.04300209,103660.0,103650.0,0.42924984]
[1763015490467,0.00024209,103660.0,103650.0,0.42924984]
[1763015490616,0.04300209,103660.0,103650.0,0.65066262]
[1763015490814,0.23594054,103660.0,103650.0,0.42924984]
[1763015491014,0.00024209,103660.0,103650.0,0.97654262]
[1763015491253,0.04300209,103660.0,103650.0,0.97654262]
[1763015491456,0.00024209,103660.0,103650.0,0.97654262]
[1763015491661,0.00024209,103660.0,103650.0,0.99654262]
[1763015491889,0.00024209,103660.0,103650.0,1.2179554]
[1763015492166,0.00024209,103660.0,103650.0,1.32875959]
[1763015493354,0.00024209,103660.0,103650.0,1.32675959]
[1763015493811,0.00024209,103660.0,103650.0,1.10734681]
[1763015494201,0.00024209,103660.0,103650.0,0.53083706]
[1763015494533,0.49678332,103660.0,103650.0,0.012]
[1763015494738,0.7791761,103660.0,103650.0,0.012]
[1763015494965,0.04300209,103660.0,103650.0,0.43924984]
[1763015495362,0.23594054,103660.0,103650.0,0.21783706]